fUSD/lending_fUSD_20240906
["ID","MTS","AMOUNT","RATE_DAILY","PERIOD"]
[337362273,1725628322721,500.0,9.964e-05,2]
[337362274,1725628324325,500.0,0.00011334,2]
[337362275,1725628407402,500.0,0.00024999,120]
[337362276,1725628555237,150.1,0.00031447,40]
[337362277,1725628560907,368.85,0.00010959,2]
[337362278,1725628650970,333.74,0.00010327,2]
[337362280,1725628830340,181.42,0.00011976,2]
[337362281,1725628904260,250.0,0.00011963,2]
[337362282,1725628920014,1431.04,0.00011951,2]
[337362283,1725628932610,2000.0,0.0001201,2]
[337362284,1725628956812,325.53,0.00011983,2]
[337362285,1725628977752,-1463.33,0.00012085,2]
[337362286,1725628977772,-220.26073675,0.00012104,2]
[337362287,1725628977793,-200.0,0.00012268,2]
[337362288,1725628977813,-160.13418828,0.00012544,2]
[337362289,1725628977838,-333.74,0.0001259,2]
[337362290,1725628977860,-348.43507497,0.0001259,2]
[337362291,1725629007365,500.0,0.00026548,120]
[337362292,1725629037500,-500.0,0.00012135,2]
[337362293,1725629037522,-1463.33,0.00012591,2]
[337362294,1725629037795,-164.34,0.00012601,2]
[337362295,1725629037818,-164.34,0.00012614,2]
[337362296,1725629037839,-910.03697666,0.00012624,2]
[337362297,1725629037861,-1463.33,0.00012624,2]
[337362298,1725629037882,-1183.3166,0.00012624,2]
[337362299,1725629037903,-164.34,0.00012626,2]
[337362300,1725629037930,-164.34,0.00012639,2]
[337362301,1725629037950,-175.99,0.00012644,2]
[337362302,1725629037971,-499.99,0.00012644,2]
[337362303,1725629037991,-164.34,0.00012652,2]
[337362304,1725629038014,-1463.33,0.00012654,2]
[337362305,1725629038037,-300.0,0.00012663,2]
[337362306,1725629038057,-164.34,0.00012664,2]
[337362307,1725629038077,-368.51,0.00012664,2]
[337362308,1725629038097,-726.12642334,0.00012694,2]
[337362310,1725629177074,279.0,0.00031462,120]
[337362312,1725629266136,300.36,0.00010477,2]
[337362313,1725629267755,1015.82638579,0.00031462,120]
[337362343,1725629431836,-1074.32,0.00012291,2]
[337362346,1725629431848,-925.68,0.00012291,2]
[337362348,1725629431857,-805.38,0.00012291,2]
[337362351,1725629431867,-250.0,0.00012301,2]
[337362354,1725629431877,-185.92,0.00012337,2]
[337362357,1725629431886,-805.38,0.00012535,2]
[337362359,1725629431899,-805.38,0.00012535,2]
[337362360,1725629431909,-805.38,0.00012535,2]
[337362361,1725629431919,-805.38,0.00012535,2]
[337362362,1725629431928,-805.38,0.00012535,2]
[337362363,1725629431938,-805.38,0.00012535,2]
[337362364,1725629431947,-805.38,0.00012535,2]
[337362365,1725629431958,-805.38,0.00012535,2]
[337362366,1725629431968,-300.0,0.00012545,2]
[337362367,1725629431978,-19657.10999999,0.00012546,2]
[337362368,1725629431989,-1033.7,0.00012546,2]
[337362369,1725629432001,-642.3977412,0.00012546,2]
[337362370,1725629435107,-1875.42835547,0.00012546,2]
[337362371,1725629435119,-691.36390334,0.00012546,2]
[337362372,1725629435128,-805.38,0.00012565,2]
[337362373,1725629435137,-840.0,0.00012575,2]
[337362374,1725629435146,-3797.88,0.00012676,2]
[337362375,1725629435158,-300.0,0.000127,4]
[337362376,1725629435167,-500.0,0.00012704,2]
[337362377,1725629435177,-500.0,0.00012704,2]
[337362378,1725629435186,-300.36,0.00012741,2]
[337362379,1725629435195,-600.0,0.000128,4]
[337362380,1725629435204,-1000.0,0.000129,4]
[337362381,1725629435213,-482.77,0.000129,2]
[337362382,1725629435222,-1623.29014099,0.00013,2]
[337362383,1725629435231,-500.0,0.00013014,2]
[337362384,1725629435240,-1658.80503352,0.00013295,2]
[337362385,1725629435251,-2572.45357662,0.00013295,2]
[337362386,1725629435260,-1000.0,0.000133,2]
[337362387,1725629435270,-150.0,0.00013359,2]
[337362388,1725629435279,-562.52956,0.0001336,2]
[337362389,1725629435289,-562.52956,0.0001336,2]
[337362390,1725629435299,-562.52956,0.0001336,2]
[337362391,1725629435309,-562.52956,0.0001336,2]
[337362392,1725629435318,-562.52956,0.0001336,2]
[337362393,1725629435328,-562.52956,0.0001336,2]
[337362394,1725629435337,-150.99,0.00013394,2]
[337362396,1725629435347,-2028.1189,0.00013395,2]
[337362398,1725629435356,-12498.1045,0.00013395,2]
[337362400,1725629435365,-493.199,0.00013395,2]
[337362402,1725629435375,-2223.7227,0.00013395,2]
[337362404,1725629435384,-130760.28506108,0.00013395,2]
[337362406,1725629435405,-33.52273892,0.00013395,2]
[337362408,1725629435417,-364.04517419,0.00013395,2]
[337362410,1725629435437,-956.69375819,0.00013395,2]
[337362411,1725629435448,-704.99448167,0.00013395,2]
[337362412,1725629435459,-1663.13628595,0.00013395,2]
[337362413,1725629435468,-181.42,0.00013472,2]
[337362414,1725629435478,-410.037,0.00013473,2]
[337362415,1725629435488,-158.72007734,0.00013473,2]
[337362416,1725629435496,-1288.77350244,0.00013473,2]
[337362417,1725629435508,-603.27489612,0.00013473,2]
[337362418,1725629435530,-2339.21021156,0.00013473,2]
[337362419,1725629435539,-150.07,0.00013485,2]
[337362420,1725629435548,-150.07,0.00013485,2]
[337362421,1725629435557,-150.07,0.00013485,2]
[337362422,1725629435566,-150.07,0.00013485,2]
[337362423,1725629435575,-150.07,0.00013485,2]
[337362424,1725629435584,-116.55750437,0.00013485,2]
[337362425,1725629435595,-33.51249563,0.00013485,2]
[337362426,1725629435604,-150.07,0.00013485,2]
[337362427,1725629435613,-150.07,0.00013485,2]
[337362428,1725629435623,-55.23500574,0.00013485,2]
[337362432,1725629437854,-94.83499426,0.00013485,2]
[337362433,1725629437864,-250.23761069,0.00013495,2]
[337362434,1725629437918,-425.16814107,0.00013495,2]
[337362435,1725629437937,-3116.80577206,0.00013495,2]
[337362436,1725629437948,-6877.83252442,0.00013495,2]
[337362437,1725629437980,-392.21618951,0.00013495,2]
[337362438,1725629438162,-285.255,0.00013495,2]
[337362448,1725629440138,-320.14,0.00012737,2]
[337362449,1725629440147,-8497.14104593,0.00013495,2]
[337362455,1725629442925,-478.07511524,0.00013495,2]
[337362456,1725629442986,-585.50095862,0.00013495,2]
[337362457,1725629443863,-1883.85538965,0.00013495,2]
[337362459,1725629445887,-1658.10984571,0.00013495,2]
[337362460,1725629446794,-6587.59589754,0.00013495,2]
[337362461,1725629446935,-5691.78609999,0.00013495,2]
[337362462,1725629465768,500.0,9.964e-05,2]
[337362463,1725629467364,500.0,0.00011334,2]
[337362464,1725629467961,3501.0,0.00031462,33]
[337362465,1725629504857,500.0,9.964e-05,2]
[337362466,1725629603530,166.24,0.00010959,2]
[337362467,1725629610329,500.0,0.00025917,120]
[337362468,1725629615155,200.0,0.00026917,120]
[337362469,1725629683720,750.0,0.00011,2]
[337362470,1725629716225,-599.7605,0.00012192,2]
[337362471,1725629716248,-3409.31399265,0.0001255,2]
[337362472,1725629716271,-3274.32550735,0.0001265,2]
[337362473,1725629741217,283.47,0.00010721,2]
[337362474,1725630149607,50000.0,0.00031461,33]
[337362475,1725630182768,50000.0,0.00031461,34]
[337362476,1725630188264,50000.0,0.00031461,35]
[337362477,1725630207381,500.0,0.0002537,120]
[337362478,1725630211704,200.0,0.0002637,120]
[337362479,1725630229655,284.04,0.00010577,2]
[337362480,1725630235264,50000.0,0.00031461,36]
[337362481,1725630244063,161.58,0.00010959,2]
[337362482,1725630273175,50000.0,0.00031461,37]
[337362484,1725630292427,1000.0,0.00031461,33]
[337362485,1725630300116,50000.0,0.00031461,33]
[337362486,1725630303940,50000.0,0.00031461,34]
[337362487,1725630307518,50000.0,0.00031461,35]
[337362488,1725630311357,50000.0,0.00031461,36]
[337362489,1725630316184,50000.0,0.00031461,37]
[337362490,1725630380955,50000.0,0.00031461,33]
[337362491,1725630385170,50000.0,0.00031461,34]
[337362492,1725630389615,50000.0,0.00031461,35]
[337362493,1725630393514,50000.0,0.00031461,36]
[337362494,1725630398901,50000.0,0.00031461,37]
[337362495,1725630499697,50000.0,0.00031461,33]
[337362496,1725630503413,50000.0,0.00031461,34]
[337362497,1725630506838,50000.0,0.00031461,35]
[337362498,1725630515420,50000.0,0.00031461,36]
[337362499,1725630516666,50000.0,0.00031461,37]
[337362500,1725630570730,-317.45,0.00012189,2]
[337362501,1725630570749,-250.0,0.00012197,2]
[337362502,1725630570770,-181.43,0.0001227,2]
[337362503,1725630570791,-2000.0,0.00012347,2]
[337362504,1725630570816,-672.0,0.00012455,2]
[337362505,1725630570838,-250.0,0.00012479,2]
[337362506,1725630570861,-1584.41,0.00012489,2]
[337362507,1725630570883,-179.59,0.00012573,2]
[337362508,1725630570905,-150.0,0.00012603,2]
[337362509,1725630570925,-328.0,0.00012624,2]
[337362510,1725630570945,-163.09,0.00012644,2]
[337362511,1725630571200,-200.0,0.000127,4]
[337362512,1725630571237,-500.0,0.00012704,2]
[337362513,1725630571262,-500.0,0.000128,4]
[337362514,1725630571285,-284.04,0.0001284,2]
[337362515,1725630571309,-1343.36,0.0001284,2]
[337362516,1725630571330,-367.54,0.000129,4]
[337362528,1725630631961,-332.46,0.000129,4]
[337362529,1725630631971,-143.80682446,0.00013014,2]
[337362530,1725630632021,-267.95,0.00013014,2]
[337362531,1725630632032,-88.24317554,0.00013014,2]
[337362532,1725630632041,-150.0,0.00013294,2]
[337362533,1725630632050,-816.61754506,0.00013295,2]
[337362534,1725630632061,-933.69181351,0.00013295,2]
[337362535,1725630632081,-688.33468283,0.00013295,2]
[337362536,1725630632092,-472.14322502,0.00013295,2]
[337362537,1725630632112,-562.49858171,0.00013295,2]
[337362538,1725630632210,-3150.20515077,0.00013295,2]
[337362539,1725630632221,-6033.96966397,0.00013295,2]
[337362540,1725630632231,-1837.68576623,0.00013295,2]
[337362541,1725630632242,-450.0,0.00013295,2]
[337362551,1725630638134,-5626.68857753,0.00013295,2]
[337362552,1725630638175,-402.61073463,0.00013295,2]
[337362553,1725630638396,-5603.2,0.00013295,2]
[337362726,1725630640336,-275.13996809,0.00013295,2]
[337362992,1725630642965,-3966.25,0.00012647,2]
[337362994,1725630642976,-16902.93439065,0.00013295,2]
[337362997,1725630642986,-36859.4396,0.00013295,2]
[337362999,1725630642996,-1134.9,0.000133,2]
[337363001,1725630643006,-396.17,0.000133,2]
[337363003,1725630643016,-1000.0,0.000133,2]
[337363005,1725630643025,-952.57077,0.0001336,2]
[337363007,1725630643035,-801.5619,0.00013395,2]
[337363009,1725630643044,-655.0721,0.00013395,2]
[337363011,1725630643054,-957.4634,0.00013395,2]
[337363013,1725630643064,-1421.1578,0.00013395,2]
[337363015,1725630643073,-7500.0,0.00013395,2]
[337363017,1725630643082,-172.28942443,0.00013395,2]
[337363019,1725630643091,-380.20198435,0.00013399,2]
[337363021,1725630643106,-405.65427698,0.00013413,2]
[337363023,1725630643118,-567.81356949,0.00013448,2]
[337363025,1725630643128,-578.76,0.00013456,2]
[337363027,1725630643138,-1500.0,0.00013477,2]
[337363029,1725630643147,-150.07,0.00013485,2]
[337363031,1725630643157,-150.07,0.00013485,2]
[337363033,1725630643167,-150.07,0.00013485,2]
[337363034,1725630643177,-150.07,0.00013485,2]
[337363037,1725630643187,-150.07,0.00013485,2]
[337363039,1725630643196,-150.07,0.00013485,2]
[337363041,1725630643206,-150.07,0.00013485,2]
[337363043,1725630643215,-318983.27078409,0.00013495,2]
[337363045,1725630643231,-4520.44181753,0.00013495,2]
[337363075,1725630643517,-5660.7779,0.00013495,2]
[337363167,1725630644611,-500.0,0.00013495,2]
[337363313,1725630646030,-289.81257428,0.00013495,2]
[337363343,1725630646329,-5629.9485885,0.00013495,2]
[337363361,1725630810827,500.0,0.000256,120]
[337363362,1725630815292,200.0,0.000266,120]
[337363363,1725630824718,283.64,0.00010725,2]
[337363364,1725630826884,50000.0,0.00031461,33]
[337363365,1725630830643,50000.0,0.00031461,34]
[337363366,1725630834719,50000.0,0.00031461,35]
[337363367,1725630838362,50000.0,0.00031461,36]
[337363368,1725630842597,50000.0,0.00031461,37]
[337363370,1725630999089,50000.0,0.00031461,33]
[337363371,1725631002865,50000.0,0.00031461,34]
[337363372,1725631006191,50000.0,0.00031461,35]
[337363373,1725631010029,50000.0,0.00031461,36]
[337363374,1725631013770,50000.0,0.00031461,37]
[337363375,1725631051214,183.17,0.00010959,2]
[337363376,1725631072258,1210.08,0.0001201,2]
[337363377,1725631094076,50000.0,0.00031461,33]
[337363378,1725631098162,50000.0,0.00031461,34]
[337363379,1725631101195,50000.0,0.00031461,35]
[337363380,1725631104117,50000.0,0.00031461,36]
[337363381,1725631107378,50000.0,0.00031461,37]
[337363383,1725631380228,284.79,0.0001034,2]
[337363384,1725631407138,390.47398,0.00025495,120]
[337363385,1725631410304,200.0,0.00026495,120]
[337363386,1725631486227,750.0,0.00011,2]
[337363387,1725631497299,250.0,0.00011773,2]
[337363388,1725631522665,-150.39,0.0001207,2]
[337363389,1725631522686,-2000.0,0.00012071,2]
[337363390,1725631522708,-7849.61,0.00012162,2]
[337363391,1725631526852,-10000.0,0.00012162,2]
[337363392,1725631531205,-6050.37,0.00012162,2]
[337363393,1725631531225,-250.0,0.00012213,2]
[337363394,1725631531245,-537.6,0.00012258,2]
[337363395,1725631531265,-200.35,0.00012278,2]
[337363396,1725631538146,-179.59,0.00012253,2]
[337363397,1725631538168,-49.65,0.00012278,2]
[337363398,1725631538190,-449.54,0.00012291,2]
[337363399,1725631538211,-9321.22,0.00012291,2]
[337363400,1725631542861,-801.01655685,0.00012291,2]
[337363401,1725631542882,-150.0,0.00012555,2]
[337363402,1725631542904,-150.0,0.00012563,2]
[337363403,1725631542925,-150.0,0.00012571,2]
[337363404,1725631542946,-150.0,0.00012578,2]
[337363405,1725631542967,-183.75,0.00012582,2]
[337363406,1725631542989,-150.0,0.00012586,2]
[337363407,1725631543010,-150.0,0.00012594,2]
[337363408,1725631543031,-462.4,0.00012599,2]
[337363409,1725631543056,-150.0,0.00012602,2]
[337363410,1725631543078,-284.79,0.00012604,2]
[337363411,1725631543101,-150.0,0.0001261,2]
[337363412,1725631543124,-150.0,0.00012618,2]
[337363413,1725631579601,350.4,0.00010959,2]
[337363414,1725631816878,150.18,0.00012009,2]
[337363415,1725631817038,150.18,0.00012009,2]
[337363416,1725631817184,150.18,0.00012009,2]
[337363417,1725631817355,150.18,0.00012009,2]
[337363418,1725631817404,150.18,0.00012009,2]
[337363419,1725631817528,150.18,0.00012009,2]
[337363420,1725631817636,150.18,0.00012009,2]
[337363421,1725631817795,150.18,0.00012009,2]
[337363422,1725631817910,150.18,0.00012009,2]
[337363423,1725631818027,150.18,0.00012009,2]
[337363424,1725631818132,150.18,0.00012009,2]
[337363425,1725631818276,150.18,0.00012009,2]
[337363426,1725631818652,150.18,0.00012009,2]
[337363430,1725631832326,-1193.8058045,0.0001202,2]
[337363431,1725631832893,-8108.51386405,0.0001202,2]
[337363432,1725631835621,-474.90645564,0.00012019,2]
[337363433,1725631835632,-501.72717069,0.00012019,2]
[337363434,1725631835642,-258.20192452,0.00012019,2]
[337363435,1725631835652,-500.29035184,0.00012019,2]
[337363436,1725631835662,-500.0,0.00012019,2]
[337363437,1725631835671,-310.12242008,0.00012019,2]
[337363438,1725631835681,-432.37758623,0.00012019,2]
[337363439,1725631835690,-11047.33217733,0.0001202,2]
[337363444,1725631838433,-33113.68313268,0.0001202,2]
[337363445,1725631838536,-55500.0,0.0001202,2]
[337363446,1725631838550,-5965.7783,0.0001202,2]
[337363447,1725631838567,-237056.87388821,0.0001202,2]
[337363448,1725631838588,-5626.743464,0.0001202,2]
[337363577,1725631840233,-260.5905,0.0001202,2]
[337363579,1725631840244,-284.38576623,0.0001202,2]
[337363592,1725631840364,-767342.82071978,0.0001202,2]
[337363594,1725631840376,-619111.28426951,0.0001202,2]
[337363602,1725631840450,-600.12148597,0.0001202,2]
[337363729,1725631841692,-1398.38132658,0.0001202,2]
[337363759,1725631841986,-605.79085522,0.0001202,2]
[337363761,1725631841997,-1666.0218171,0.0001202,2]
[337363909,1725631843442,-8726.49600035,0.0001202,2]
[337363913,1725631843470,-11728.13724842,0.0001202,2]
[337363915,1725631843481,-429.41147676,0.0001202,2]
[337363980,1725631844146,-2779.05,0.0001202,2]
[337363981,1725631844157,-14673.34270739,0.0001202,2]
[337363982,1725631844168,-47156.5233312,0.0001202,2]
[337364183,1725631846227,-1634.63556471,0.0001202,2]
[337364185,1725631846239,-589.675,0.0001202,2]
[337364187,1725631846250,-534.09998944,0.0001202,2]
[337364190,1725631846264,-45707.19094235,0.0001202,2]
[337364197,1725631846322,-369.15130269,0.0001202,2]
[337364199,1725631846333,-384.50318454,0.0001202,2]
[337364204,1725631846408,-2091.0265999,0.0001202,2]
[337364205,1725631846559,-19366.06157175,0.0001202,2]
[337369583,1725631906830,293.14,0.00010475,2]
[337369728,1725631931861,421.143244,0.00011958,2]
[337369729,1725631961384,-1285.0,0.00012018,2]
[337369730,1725631996047,2002.19,0.0003147,33]
[337369731,1725632006712,500.0,0.00026,120]
[337369732,1725632011181,200.0,0.00025,120]
[337369733,1725632049579,2000.0,0.0003147,33]
[337369734,1725632076920,50000.0,0.0003147,33]
[337369735,1725632080979,50000.0,0.0003147,34]
[337369736,1725632085502,50000.0,0.0003147,35]
[337369737,1725632088587,50000.0,0.0003147,36]
[337369738,1725632092664,50000.0,0.0003147,37]
[337369739,1725632101339,532.33,0.00027,120]
[337369740,1725632109445,532.33,0.00027,120]
[337369741,1725632117445,532.33,0.00027,120]
[337369742,1725632128032,532.2,0.00027,120]
[337369743,1725632131128,218.15,0.00010959,2]
[337369744,1725632170314,301.8893731,0.0003147,33]
[337369745,1725632204614,854.80905566,0.000119,2]
[337369746,1725632348102,1573185.96,0.0003147,33]
[337369747,1725632353832,50000.0,0.0003147,33]
[337369748,1725632356097,1749.19,0.00011867,2]
[337369749,1725632358134,50000.0,0.0003147,34]
[337369750,1725632362955,50000.0,0.0003147,35]
[337369751,1725632366454,50000.0,0.0003147,36]
[337369752,1725632370109,50000.0,0.0003147,37]
[337369753,1725632385763,604.65,0.00011773,2]
[337369754,1725632463947,-285.0,0.00012015,2]
[337369755,1725632463971,-300.0,0.00012017,2]
[337369756,1725632463992,-2971.17770034,0.00012018,2]
[337369757,1725632469623,-6918.04344315,0.00012018,2]
[337369758,1725632483796,296.24,0.00010328,2]
[337369759,1725632487076,-3170.9170459,0.00012018,2]
[337369760,1725632487098,-250.0,0.00012216,2]
[337369761,1725632487119,-250.0,0.00012216,2]
[337369762,1725632487141,-6329.0829541,0.00012225,2]
[337369763,1725632488309,-2550.0170459,0.00012225,2]
[337369764,1725632488339,-250.0,0.00012241,2]
[337369765,1725632488366,-172.529219,0.00012245,2]
[337369766,1725632488393,-2299.85,0.00012245,2]
[337369767,1725632488419,-1900.65,0.00012245,2]
[337369768,1725632488446,-430.08,0.0001226,2]
[337369769,1725632488474,-181.55,0.00012267,2]
[337369770,1725632488504,-499.99,0.00012267,2]
[337369771,1725632488530,-424.68,0.00012274,2]
[337369772,1725632488557,-150.0,0.00012344,2]
[337369773,1725632488589,-1140.6537351,0.00012345,2]
[337369774,1725632532439,183.02,0.00011773,2]
[337369775,1725632541048,-419.19086087,0.00012329,2]
[337369776,1725632541071,-300.0,0.00012344,2]
[337369777,1725632541092,-859.3462649,0.00012345,2]
[337369778,1725632541113,-9526.78,0.00012345,2]
[337369779,1725632541134,-768.68287423,0.00012345,2]
[337369780,1725632548951,2000.0,0.00011773,2]
[337369781,1725632605872,500.0,0.00025973,120]
[337369782,1725632610813,200.0,0.00024973,120]
[337369783,1725632631947,-250.0,0.00012336,2]
[337369784,1725632631967,-50.70712577,0.00012345,2]
[337369785,1725632631988,-8294.29287423,0.00012372,2]
[337369786,1725632665877,-2235.19,0.00012309,2]
[337369787,1725632665899,-300.0,0.00012371,2]
[337369788,1725632665922,-8201.81,0.00012372,2]
[337369789,1725632730428,7747.58575002,0.000101,2]
[337369790,1725632842268,156.02,0.00010959,2]
[337369791,1725632875228,26454.0,0.00031466,33]
[337369792,1725632894465,532.33,0.00027,120]
[337369794,1725632912743,-300.0,0.00012031,2]
[337369795,1725632912773,-2493.18,0.00012032,2]
[337369798,1725632912803,-150.0,0.00012132,2]
[337369799,1725632912835,-170.05,0.00012135,2]
[337369800,1725632912869,-150.39,0.00012135,2]
[337369802,1725632912902,-36.10295656,0.00012161,2]
[337369805,1725632933060,156.0,0.00012,2]
[337369806,1725632937738,-124.81704344,0.00012161,2]
[337369808,1725632937770,-7138.32944967,0.00012287,2]
[337369810,1725632937812,-2155.4664471,0.00012287,2]
[337369818,1725632969654,542.57,0.00011986,2]
[337369819,1725632973589,298.3,0.00010101,2]
[337369868,1725633032442,-549.55901,0.00012051,2]
[337369869,1725633032454,-106.37099,0.00012051,2]
[337369870,1725633032464,-359.0,0.00012286,2]
[337369871,1725633032473,-298.3,0.00012365,2]
[337369872,1725633032483,-643.75718068,0.00012372,2]
[337369873,1725633032496,-804.53368081,0.00012372,2]
[337369874,1725633032507,-337.01913656,0.00012372,2]
[337369875,1725633032518,-1015.95712772,0.00012372,2]
[337369876,1725633032527,-150.0,0.00012492,2]
[337369877,1725633032537,-150.75966,0.00012492,2]
[337369878,1725633032546,-793.80898,0.0001251,2]
[337369879,1725633032556,-793.80898,0.0001251,2]
[337369880,1725633032565,-162.59906324,0.00012538,2]
[337369881,1725633032574,-793.80899,0.0001255,2]
[337369882,1725633032584,-257.52839278,0.0001259,2]
[337369883,1725633032595,-536.28058722,0.0001259,2]
[337369884,1725633032605,-793.80898,0.0001263,2]
[337369885,1725633032614,-793.80899,0.0001267,2]
[337369886,1725633032624,-194.83,0.00012713,2]
[337369887,1725633032633,-499.99,0.00012731,2]
[337369888,1725633032643,-150.0,0.00012876,2]
[337369889,1725633032652,-150.0,0.00012877,2]
[337369890,1725633032662,-427.46,0.00012877,2]
[337369891,1725633032671,-357.41,0.00012877,2]
[337369892,1725633032681,-150.0,0.00012877,2]
[337369893,1725633032690,-150.0,0.00012877,2]
[337369894,1725633032699,-150.0,0.00012877,2]
[337369895,1725633032709,-251.59,0.00012877,2]
[337369896,1725633032720,-150.0,0.00012877,2]
[337369897,1725633032729,-427.46,0.00012877,2]
[337369898,1725633032739,-150.0,0.00012877,2]
[337369899,1725633032751,-150.0,0.00012877,2]
[337369900,1725633032761,-150.0,0.00012877,2]
[337369901,1725633032771,-150.0,0.00012877,2]
[337369902,1725633032781,-150.0,0.00012877,2]
[337369903,1725633032790,-427.46,0.00012877,2]
[337369904,1725633032800,-150.0,0.00012877,2]
[337369905,1725633032809,-150.0,0.00012877,2]
[337369906,1725633032819,-427.46,0.00012877,2]
[337369907,1725633032829,-301.04,0.00012877,2]
[337369908,1725633032839,-427.46,0.00012877,2]
[337369909,1725633032850,-150.0,0.00012877,2]
[337369910,1725633032859,-300.86,0.00012877,2]
[337369911,1725633032869,-427.46,0.00012877,2]
[337369912,1725633032879,-150.0,0.00012877,2]
[337369913,1725633032888,-427.46,0.00012877,2]
[337369914,1725633032898,-13697.55,0.00012893,2]
[337369915,1725633032910,-5433.26186988,0.00012893,2]
[337369916,1725633032922,-270.43813012,0.00012893,2]
[337369917,1725633032931,-294.28186988,0.000129,2]
[337369918,1725633032952,-360.79023012,0.000129,2]
[337369919,1725633032961,-74.16218961,0.00012914,2]
[337369920,1725633032977,-4679.24041651,0.00012914,2]
[337369921,1725633032988,-419.19086087,0.00012923,2]
[337369922,1725633033002,-500.0,0.00012999,2]
[337369923,1725633033011,-646.65374584,0.00012999,2]
[337369924,1725633033020,-500.0,0.00012999,2]
[337369925,1725633033031,-500.0,0.00012999,2]
[337369926,1725633033041,-500.0,0.00012999,2]
[337369927,1725633033051,-609.77890291,0.00012999,2]
[337369928,1725633033062,-46756.13607387,0.00013,2]
[337369929,1725633033075,-653.26372546,0.00013,2]
[337369930,1725633033096,-637.89262546,0.00013,2]
[337369931,1725633033107,-505.8176797,0.00013,2]
[337369932,1725633033119,-971.24560429,0.00013,2]
[337369933,1725633033131,-3749.97599785,0.00013,2]
[337369934,1725633033143,-3377.03584135,0.00013,2]
[337369935,1725633033168,-335.08950845,0.00013,2]
[337369936,1725633033181,-276.52,0.00013,2]
[337369937,1725633033192,-2073.79125364,0.00013,2]
[337369938,1725633033204,-312.4205569,0.00013,2]
[337369939,1725633033238,-122159.88540425,0.00013,2]
[337369940,1725633033251,-300.0,0.00013,2]
[337369941,1725633033261,-500.0,0.00013014,2]
[337369942,1725633033271,-4753.40260605,0.00013135,2]
[337369943,1725633033281,-150.0,0.00013227,2]
[337369944,1725633033291,-150.0,0.00013263,2]
[337369945,1725633033301,-369.034,0.00013263,2]
[337369946,1725633033311,-154.45,0.00013266,2]
[337369947,1725633033320,-150.0,0.0001327,2]
[337369948,1725633033330,-1500.0,0.00013277,2]
[337369949,1725633033340,-150.0,0.00013287,2]
[337369950,1725633033350,-150.0,0.00013287,2]
[337369951,1725633033360,-1623.24816168,0.0001329,2]
[337369955,1725633033629,-150.0,0.00013295,2]
[337369956,1725633033639,-854.618767,0.000133,2]
[337369957,1725633033649,-4910.085,0.000133,2]
[337369958,1725633033659,-150.0,0.00013307,2]
[337369959,1725633033669,-150.0,0.00013309,2]
[337369960,1725633033678,-150.0,0.00013319,2]
[337369961,1725633033689,-150.0,0.00013322,2]
[337369962,1725633033699,-150.0,0.00013333,2]
[337369963,1725633033709,-150.0,0.00013342,2]
[337369964,1725633033719,-150.0,0.00013353,2]
[337369965,1725633033729,-150.0,0.00013355,2]
[337369966,1725633033739,-4753.40260605,0.00013355,2]
[337369967,1725633033750,-418.1984,0.00013357,2]